{"text_format":"1","workbook":"xlsx","n_sheets":3,"sheets":["Отпускное","Данные","Архив"],"not_rendered":{"charts":0,"images":0,"macros":1,"external_links":0,"defined_names":1,"comments":0,"pivot_tables":0},"unopened":[],"bounds":{"document_bytes":16777216,"sheet_cells":100000,"rows_first":2000,"rows_last":500,"rows_between":2000,"halvings":0,"cell_chars":16384,"cell_head_chars":4096},"cells_cut":0,"cells_raw":0,"read":"whole","date_system":"1900"}

{"sheet":"Отпускное","index":0,"n_rows":37,"n_cols":14,"rows_kept":37,"cut":false,"hidden":false,"merged":[[22,0,26,1],[0,8,31,8],[0,3,31,3],[0,12,31,12],[0,2,31,2],[0,7,31,7],[17,10,17,11],[26,9,26,10],[3,10,4,10],[7,9,7,11],[10,9,10,11],[20,5,20,6],[23,4,23,6],[26,4,26,5],[0,9,0,11],[1,9,1,11],[8,14,8,15],[19,4,19,5],[4,5,4,6],[5,5,5,6],[7,5,7,6],[8,5,8,6],[12,5,12,6],[18,5,18,6],[9,13,9,14],[13,10,13,11],[14,10,14,11],[15,10,15,11],[19,10,19,11],[19,13,19,14],[19,0,19,1],[0,0,0,1],[1,0,1,1],[0,4,0,6],[1,4,1,6],[9,4,9,5],[9,0,9,1]]}
[{"$f":"E1","v":"ОДО СМЕЛТ"},null,null,null,"ОДО СМЕЛТ",null,null,null,null,{"$f":"E1","v":"ОДО СМЕЛТ"}]
[{"$f":"E3","v":"2013-07-24"},null,null,null,"ОТПУСКНОЕ УДОСТОВЕРЕНИЕ",null,null,null,null,"СПРАВКА\nв финансовую группу ОДО СМЕЛТ"]
[null,null,null,null,"2013-07-24","№",1,null,null,{"$f":"E3","v":"2013-07-24"},"№",{"$f":"G3","v":1}]
[null,null,null,null,null,null,null,null,null,null,"Просим выдать денежное \nсодержание, документы работнику"]
["Выдано",{"$f":"F5","v":"директору предприятия"},null,null,"Выдано","директору предприятия"]
[null,"должность",null,null,null,"должность"]
["                         ",null,null,null,"                         ",null,null,null,null,null,null,null,null,"                         "]
[null,{"$f":"F8","v":"Иванову Ивану Ивановичу"},null,null,null,"Иванову Ивану Ивановичу",null,null,null,{"$f":"F5","v":"директору предприятия"}]
[null,"инициалы и фамилия",null,null,null,"инициалы и фамилия",null,null,null,null,"должность"]
[]
[null,null,null,null,null,null,null,null,null,{"$f":"F8","v":"Иванову Ивану Ивановичу"}]
[null,null,null,null,null,null,null,null,null,null,"инициалы и фамилия"]
[{"$f":"E13","v":"Предоставлена"},{"$f":"F13","v":"часть основного ежегодного отпуска за 2013 год"},null,null,"Предоставлена","часть основного ежегодного отпуска за 2013 год"]
[null,null,null,null,null,null,null,null,null,"Убывающему (й) в",{"$f":"F13","v":"часть основного ежегодного отпуска за 2013 год"}]
[null,null,null,null,null,null,null,null,null,"с",{"$f":"F16","v":"2013-07-24"}]
["с",{"$f":"F16","v":"2013-07-24"},null,null,"с","2013-07-24",null,null,null,"по",{"$f":"F17","v":"2013-07-24"}]
["по",{"$f":"F17","v":"2013-07-24"},null,null,"по","2013-07-24"]
[null,null,null,null,null,null,null,null,null,"время на проезд:",{"$f":"F21","v":"01 календарный день"}]
["с пребыванием",{"$f":"F19","v":"в г. Магдебург (Германия)"},null,null,"с пребыванием","в г. Магдебург (Германия)"]
[null,null,null,null,null,null,null,null,null,"с пребыванием",{"$f":"F19","v":"в г. Магдебург (Германия)"}]
["время на проезд:",{"$f":"F21","v":"01 календарный день"},null,null,"время на проезд:","01 календарный день"]
[]
[]
[null,null,null,null,"Действительно при предъявлении удостоверения личности или паспорта."]
[]
[]
[null,null,null,null,"Инспектор ОК",null,"А.В.Сидоров",null,null,"Инспектор ОК",null,"А.В.Сидоров"]
[null,null,null,null,null,"                           ",null,null,null,null,"                           "]
[null,null,null,null,null,"            М.П.",null,null,null,null,"            М.П."]
[]
[]
[]
[]
[]
[]
[]
[null,"  "]

{"sheet":"Данные","index":1,"n_rows":21,"n_cols":8,"rows_kept":21,"cut":false,"hidden":false,"merged":[]}
[null,"Иванову Ивану Ивановичу",null,"директору предприятия",null,"часть основного ежегодного отпуска за 2013 год",null,"01 календарный день"]
[null,"Петрову Петру Петровичу",null,"инженеру ОТР",null,"основной ежегодный отпуск за 2013 год",null,"02 календарных дня"]
[null,null,null,null,null,null,null,"03 календарных дня"]
[null,null,null,null,null,null,null,"01 календарных дня"]
[null,null,null,null,null,null,null,"05 календарных дней"]
[null,null,null,null,null,null,null,"06 календарных дней"]
[null,null,null,null,null,null,null,"07 календарных дней"]
[null,null,null,null,null,null,null,"08 календарных дней"]
[null,null,null,null,null,null,null,"09 календарных дней"]
[null,null,null,null,null,null,null,"10 календарных дней"]
[null,null,null,null,null,null,null,"11 календарных дней"]
[null,null,null,null,null,null,null,"12 календарных дней"]
[null,null,null,null,null,null,null,"13 календарных дней"]
[null,null,null,null,null,null,null,"14 календарных дней"]
[null,null,null,null,null,null,null,"15 календарных дней"]
[]
[]
[]
[]
[null,null,null,null,null,null,null,"Предоставлен"]
[null,null,null,null,null,null,null,"Предоставлена"]

{"sheet":"Архив","index":2,"n_rows":4,"n_cols":8,"rows_kept":4,"cut":false,"hidden":false,"merged":[[0,1,1,5],[0,0,1,0],[0,6,1,7]]}
[{"$f":"TODAY()","v":"2013-07-13"},"АРХИВ ВЫДАННЫХ ОТПУСКНЫХ УДОСТОВЕРЕНИЙ"]
[]
["должность","Ф.И.О.","дата выдачи","номер ОТПУСКНОГО удостоверения","выбыл в отпуск","прибыл из отпуска","куда выбыл","предоставлено времени на проезд"]
["директору предприятия","Иванову Ивану Ивановичу","2013-07-10",1,"2013-07-12","2013-07-28","в г. Магдебург (Германия)","15 календарных дней"]